bitfinex/quotes_ETHUSD_20250106
["timestamp","ask_amount","ask_price","bid_price","bid_amount"]
[1736122774950,1.2733658,3636.2,3635.6,0.8211]
[1736122775155,1.1493658,3636.2,3635.6,0.8211]
[1736122775394,1.1493658,3636.2,3635.9,0.8211]
[1736122775555,1.1493658,3636.2,3635.9,0.329647]
[1736122775758,1.1493658,3636.2,3636.0,0.8211]
[1736122776193,0.124,3636.8,3636.0,0.8211]
[1736122776194,1.2733658,3636.8,3636.0,0.8211]
[1736122776387,4.2733658,3636.8,3636.0,0.8211]
[1736122776953,2.47479,3636.7,3636.0,0.8211]
[1736122777157,0.84722045,3636.6,3636.0,0.8211]
[1736122777366,3.32211045,3636.6,3636.0,0.8211]
[1736122777570,5.47491,3636.5,3636.0,0.8211]
[1736122777773,5.47497,3636.4,3635.4,0.8303]
[1736122777967,2.47497,3636.4,3635.4,0.8303]
[1736122778175,3.19014905,3636.4,3635.4,0.8303]
[1736122778395,4.33951485,3636.4,3635.4,0.8303]
[1736122778759,2.47504,3636.3,3635.4,0.8303]
[1736122779364,1.1493658,3636.3,3635.4,0.8303]
[1736122779559,0.124,3636.2,3635.4,0.8303]
[1736122781496,0.4124417,3636.2,3635.4,0.8303]
[1736122781702,2.47517,3636.1,3635.4,0.8303]
[1736122781906,2.47533,3635.9,3635.4,0.8303]
[1736122782291,0.8205,3636.0,3635.4,0.8303]
[1736122782465,0.8205,3636.0,3634.9,0.8223]
[1736122782466,5.47538,3635.9,3634.9,0.8223]
[1736122782666,0.87936418,3635.8,3634.9,0.8223]
[1736122782913,3.6247458,3635.9,3634.9,0.8223]
[1736122783426,3.0,3635.8,3634.9,0.8223]
[1736122784303,1.1493658,3635.8,3635.1,0.7988]
[1736122784677,1.1493658,3635.8,3635.3,0.7945]
[1736122784877,1.1493658,3635.8,3635.4,0.7945]
[1736122785607,3.124,3636.0,3635.4,0.7945]
[1736122786728,0.124,3636.0,3635.4,0.7945]
[1736122787416,0.124,3636.0,3635.5,0.7945]
[1736122788524,3.0,3636.4,3635.5,0.7945]
[1736122790328,1.1493658,3636.3,3635.5,0.7945]
[1736122794797,1.1493658,3636.3,3635.6,0.8284]
[1736122796262,1.1493658,3636.3,3635.7,0.8324]
[1736122796454,1.1493658,3636.3,3636.2,3.30751]
[1736122796604,1.1493658,3636.5,3636.3,0.8324]
[1736122797329,1.1493658,3636.5,3636.4,3.30737]
[1736122797498,1.1493658,3636.5,3636.4,4.15135094]
[1736122797703,2.85454142,3637.1,3636.5,2.47485]
[1736122797704,1.1493658,3637.1,3636.5,2.47485]
[1736122797930,1.1493658,3637.1,3636.6,0.8324]
[1736122798503,1.1493658,3637.1,3636.7,0.8324]
[1736122799007,1.1493658,3637.4,3636.7,3.30711]
[1736122799241,1.14605457,3637.4,3636.8,3.30703]
[1736122799540,1.14605457,3637.4,3637.0,0.8324]
[1736122800304,1.7240487,3637.7,3637.0,0.8324]
[1736122801433,0.124,3637.8,3637.0,0.8324]
[1736122802252,2.47417,3637.6,3637.0,0.8324]
[1736122803769,3.31269803,3637.8,3637.0,0.8324]
[1736122803970,0.83867803,3637.8,3637.0,0.8324]
[1736122804164,3.31271803,3637.8,3637.0,0.8324]
[1736122804566,0.124,3637.8,3637.1,0.7776]
[1736122804870,0.124,3637.8,3637.1,3.25206]
[1736122805097,0.124,3637.8,3637.1,0.7776]
[1736122805277,3.35002,3637.8,3637.1,0.7776]
[1736122807775,3.22602,3637.8,3637.1,0.7776]
[1736122807936,0.123,3637.7,3637.1,0.7776]
[1736122808894,0.123,3637.7,3637.2,0.325223]
[1736122809100,0.123,3637.9,3637.2,0.7505]
[1736122809496,5.47369,3638.3,3637.1,2.47448]
[1736122809497,3.0,3638.3,3637.1,2.65728935]
[1736122809795,3.0,3638.3,3637.5,2.47421]
[1736122809796,3.123,3638.3,3637.5,2.47421]
[1736122810098,3.123,3638.3,3637.6,0.7967]
[1736122810473,0.133,3638.4,3637.6,0.7967]
[1736122810668,0.133,3638.4,3637.7,3.45398935]
[1736122810995,0.01,3638.4,3638.1,0.7967]
[1736122811158,0.01,3638.4,3638.1,3.2705]
[1736122812014,0.01,3638.4,3638.1,0.7967]
[1736122814029,0.01,3638.4,3638.2,0.7581]
[1736122814234,0.01,3638.4,3638.3,6.23060829]
[1736122814640,0.01,3638.4,3638.3,3.57331894]
[1736122815838,0.01,3638.4,3638.3,1.09963894]
[1736122815979,0.01,3638.4,3638.3,0.7581]
[1736122817680,0.01,3638.4,3637.8,0.8068]
[1736122817880,0.01,3638.4,3638.0,2.47385]
[1736122818132,0.01,3638.4,3638.2,2.47374]
[1736122818481,0.01,3638.4,3638.3,3.23048]
[1736122818682,0.01,3638.4,3638.3,3.81925694]
[1736122819241,0.01,3638.4,3638.3,6.47654629]
[1736122820083,0.01,3638.4,3638.3,3.81925694]
[1736122820283,0.01,3638.4,3638.3,0.7568]
[1736122822243,0.01,3638.4,3637.9,0.813]
[1736122822739,0.7741,3638.3,3637.6,0.82]
[1736122826121,2.47375,3638.2,3637.2,0.7974]
[1736122826442,0.325785,3638.1,3637.2,0.7974]
[1736122826743,2.47382,3638.1,3637.2,0.7974]
[1736122826922,0.123,3638.0,3637.2,0.7974]
[1736122830356,2.59691,3638.0,3636.7,2.47476]
[1736122830486,3.28196,3637.9,3636.8,0.7895]
[1736122830841,3.28196,3637.9,3636.8,3.85634493]
[1736122831409,0.808,3637.9,3637.1,2.47448]
[1736122831740,0.123,3638.0,3636.8,4.03894428]
[1736122831741,0.123,3638.0,3637.3,2.47434]
[1736122831918,0.01,3638.4,3637.7,0.7895]
[1736122832093,0.01,3638.4,3638.3,2.47368]
[1736122832533,0.01,3638.4,3638.3,2.52915594]
[1736122832733,0.01,3638.4,3638.3,3.12675047]
[1736122838213,0.01,3638.4,3638.3,0.05547594]
[1736122838540,0.01,3638.4,3638.1,0.7895]
[1736122838541,0.01,3638.4,3638.1,3.2633]
[1736122838701,0.01,3638.4,3638.3,0.05547594]
[1736122838898,0.01,3638.4,3638.1,0.7895]
[1736122839104,0.01,3638.4,3638.3,0.05547594]
[1736122839300,0.01,3638.4,3637.9,0.7795]
[1736122839499,0.01,3638.4,3638.3,0.05487204]
[1736122839711,0.01,3638.4,3637.9,0.7795]
[1736122839913,0.01,3638.4,3638.3,0.0530292]
[1736122840107,0.01,3638.4,3637.9,0.7795]
[1736122840421,0.01,3638.4,3638.3,0.0530292]
[1736122840821,0.01,3638.4,3637.9,0.7795]
[1736122841136,0.01,3638.4,3638.0,0.05304505]
[1736122846468,0.01,3638.4,3638.0,0.38370556]
[1736122847434,0.01,3638.4,3638.0,2.85758556]
[1736122848472,0.01,3638.4,3638.1,2.4738]
[1736122848640,0.01,3638.4,3638.1,2.52683977]
[1736122849366,0.01,3638.4,3638.1,0.05303977]
[1736122849666,0.01,3638.4,3638.3,2.47368]
[1736122850234,0.01,3638.4,3638.3,2.5268021]
[1736122852883,0.01,3638.4,3638.3,5.18409145]
[1736122853380,0.01,3638.4,3638.3,5.93869145]
[1736122854762,0.01,3638.4,3638.3,3.46501145]
[1736122854949,0.01,3638.4,3638.3,3.87498854]
[1736122857446,0.01,3638.4,3638.3,6.34866854]
[1736122861303,0.01,3638.4,3638.3,9.34866854]
[1736122862192,0.01,3638.4,3638.3,12.88033255]
[1736122862396,2.03031005,3639.8,3638.4,3.0]
[1736122862596,2.03031005,3639.8,3638.6,5.13073935]
[1736122862960,0.7612,3639.7,3638.7,0.05209974]
[1736122863193,0.7612,3639.4,3638.7,0.05209974]
[1736122863500,0.7612,3639.4,3638.3,3.13399973]
[1736122864102,0.7612,3639.4,3638.4,0.05038587]
[1736122864262,3.23419,3639.4,3638.4,0.05038587]
[1736122864460,0.7612,3639.2,3638.4,0.05038587]
[1736122865311,0.7612,3639.2,3638.1,0.7866]
[1736122865602,0.7612,3639.2,3638.5,0.05038059]
[1736122865774,0.7612,3639.2,3638.1,0.7866]
[1736122866106,0.7612,3639.2,3638.1,3.26039]
[1736122866315,3.23428,3639.2,3638.1,1.41143399]
[1736122866480,4.38049005,3639.2,3638.2,0.05039643]
[1736122866888,0.7612,3639.1,3638.2,0.05039643]
[1736122867068,0.7612,3638.6,3637.7,0.7866]
[1736122867899,0.7612,3638.6,3637.6,1.15226428]
[1736122867900,0.123,3638.5,3637.8,0.04886079]
[1736122868100,0.123,3638.5,3637.6,1.15226428]
[1736122868101,0.7665,3638.3,3637.5,1.15226428]
[1736122868399,2.47376,3638.2,3637.9,0.0488555]
[1736122868612,0.7665,3638.0,3637.5,1.15226428]
[1736122870001,0.7665,3638.0,3637.4,1.72438036]
[1736122870002,0.7665,3638.0,3636.9,1.4277347]
[1736122870305,3.0,3638.2,3636.9,1.4277347]
[1736122870475,0.7665,3637.8,3636.9,1.4277347]
[1736122871006,0.7665,3637.8,3636.5,5.18696971]
[1736122871007,0.7665,3637.7,3636.5,3.46258935]
[1736122871191,0.7665,3637.7,3636.6,0.70897936]
[1736122873419,3.24061,3637.7,3636.6,0.70897936]
[1736122873618,2.47419,3637.6,3636.6,0.70897936]
[1736122874119,2.47419,3637.6,3636.5,0.8053]
[1736122874426,0.7665,3637.7,3636.5,3.28019]
[1736122875695,0.7665,3637.7,3636.6,2.47483]
[1736122876622,0.7665,3637.7,3636.9,0.8071]
[1736122876838,0.8885,3637.7,3636.9,0.8071]
[1736122877126,0.8885,3637.7,3637.0,0.59390893]
[1736122877627,0.8885,3637.7,3636.6,3.28191]
[1736122877785,2.47418,3637.6,3636.6,0.8071]
[1736122877985,3.27243,3637.5,3636.3,3.30818]
[1736122879282,2.47429,3637.4,3636.3,0.8332]
[1736122879486,0.8288,3637.3,3636.3,0.8332]
[1736122880608,0.8288,3637.3,3636.4,0.04643988]
[1736122881419,0.8288,3637.6,3636.5,3.46788935]
[1736122881734,0.122,3637.5,3636.7,2.47471]
[1736122882249,0.122,3637.5,3636.8,0.04641873]
[1736122882414,0.122,3637.5,3636.9,0.25211287]
[1736122882815,0.122,3637.5,3637.0,0.04640816]
[1736122884739,0.122,3637.5,3636.8,2.47469]
[1736122884938,0.122,3637.5,3637.1,0.04640287]
[1736122885144,0.122,3637.5,3636.8,2.47469]
[1736122885344,0.122,3637.5,3637.2,0.04639759]
[1736122885545,0.122,3637.5,3636.9,0.247469]
[1736122885746,0.122,3637.5,3637.3,0.0463923]
[1736122885946,0.122,3637.5,3636.9,0.247469]
[1736122886254,0.122,3637.5,3637.4,0.04638702]
[1736122886458,0.122,3637.5,3636.9,0.247469]
[1736122886655,0.122,3637.5,3637.4,0.04638702]
[1736122886828,0.122,3637.5,3636.8,2.47469]
[1736122887035,0.122,3637.5,3637.4,0.04638702]
[1736122887232,0.122,3637.5,3636.6,2.47482]
[1736122887639,0.122,3637.5,3636.7,0.04642402]
[1736122887946,0.122,3637.5,3636.7,0.64533736]
[1736122888320,0.122,3637.5,3636.7,3.12007736]
[1736122888931,0.122,3637.5,3636.9,2.47463]
[1736122889125,0.8288,3637.6,3636.9,2.47463]
[1736122889126,0.8288,3637.6,3637.0,0.8073]
[1736122889443,3.62003005,3638.1,3637.0,0.8073]
[1736122889444,0.8133,3638.0,3637.1,2.65728935]
[1736122889772,0.8133,3638.0,3637.2,0.39754377]
[1736122890476,0.8133,3638.0,3637.3,2.47435]
[1736122890763,0.8133,3638.0,3637.4,0.04643345]
[1736122891342,0.8133,3638.0,3637.2,0.35109975]
[1736122891564,0.8133,3638.0,3637.5,0.04642817]
[1736122891799,0.8133,3638.0,3637.2,0.35109975]
[1736122891967,0.8133,3638.0,3637.3,0.62901591]
[1736122892129,0.8133,3638.0,3637.3,0.67545465]
[1736122892981,0.9353,3638.0,3637.3,0.67545465]
[1736122893301,0.8133,3638.0,3637.3,0.67545465]
[1736122893430,0.122,3638.1,3637.5,2.47421]
[1736122893631,1.14621005,3638.5,3637.7,2.65728935]
[1736122893930,1.14621005,3638.6,3638.2,5.90782935]
[1736122894470,1.14621005,3638.6,3638.3,0.04676227]
[1736122895172,0.8935,3639.1,3638.3,0.04676227]
[1736122896368,0.8935,3639.1,3638.4,0.59545916]
[1736122897073,0.7538,3639.4,3638.5,2.65728935]
[1736122897274,0.7538,3639.4,3638.6,0.8169]
[1736122897773,0.7538,3639.4,3638.7,0.04674115]
[1736122903847,0.121,3639.6,3638.9,2.47324]
[1736122904090,0.7993,3639.9,3639.0,0.32953811]
[1736122904353,0.121,3639.8,3639.0,0.37526312]
[1736122904586,0.7993,3639.9,3639.0,0.37526312]
[1736122904791,0.9203,3639.9,3639.0,0.37526312]
[1736122907026,0.121,3640.1,3639.1,3.24853]
[1736122907235,0.121,3640.1,3639.1,1.40350825]
[1736122907416,0.121,3640.1,3639.2,0.04500307]
[1736122907618,0.7993,3640.2,3639.4,2.65728935]
[1736122907817,0.7993,3640.2,3639.2,0.04500307]
[1736122907818,1.14621005,3640.4,3639.7,3.47598935]
[1736122908021,1.14621005,3640.4,3639.9,0.8187]
[1736122908333,1.14621005,3640.4,3640.0,0.04496085]
[1736122909635,0.9154,3640.9,3640.0,0.04496085]
[1736122914428,0.7944,3640.9,3640.0,0.04496085]
[1736122914602,0.121,3641.0,3640.0,0.04496085]
[1736122915945,0.121,3641.0,3640.0,2.51743085]
[1736122916131,0.121,3641.0,3640.1,0.39309908]
[1736122916316,0.121,3641.0,3640.1,0.8097]
[1736122916802,0.121,3641.0,3640.1,0.85367854]
[1736122919338,0.121,3641.0,3640.1,3.32612854]
[1736122920403,0.121,3641.0,3640.1,0.85367854]
[1736122920604,0.8072,3640.6,3640.1,0.04397854]
[1736122920904,0.8072,3640.6,3639.7,0.7924]
[1736122921103,0.121,3641.0,3639.7,0.7924]
[1736122921104,3.8072,3640.9,3640.3,0.7924]
[1736122921417,0.121,3641.0,3640.4,0.04384424]
[1736122921598,0.121,3641.0,3640.5,0.33086142]
[1736122921803,0.121,3641.0,3640.6,0.04383369]
[1736122922606,0.121,3641.0,3640.3,0.7924]
[1736122922817,0.121,3641.0,3640.4,0.04378428]
[1736122923945,0.7702,3641.7,3640.7,2.47204]
[1736122924153,0.7702,3641.7,3640.8,1.023004]
[1736122924362,0.121,3641.8,3640.8,3.53874718]
[1736122924822,0.121,3641.9,3640.8,3.53874718]
[1736122925502,0.121,3641.9,3640.8,2.76294718]
[1736122925725,0.121,3641.9,3641.0,0.7813]
[1736122925965,0.121,3641.9,3641.1,0.0432085]
[1736122927862,0.8128,3641.8,3641.1,0.0432085]
[1736122928030,2.47144,3641.6,3641.1,0.0432085]
[1736122928225,2.47144,3641.6,3640.7,0.8049]
[1736122928456,2.47144,3641.6,3640.8,0.04297208]
[1736122929163,2.59244,3641.6,3640.8,0.04297208]
[1736122929535,0.121,3641.6,3640.8,0.04297208]
[1736122930802,0.121,3641.6,3640.9,0.7717]
[1736122931013,0.121,3641.6,3641.0,0.04296153]
[1736122931309,2.47117,3642.0,3641.1,0.8046]
[1736122931310,0.121,3642.0,3641.1,0.8046]
[1736122931512,0.121,3642.0,3641.1,0.84755626]
[1736122933089,2.59223,3642.0,3641.1,0.84755626]
[1736122934153,2.47123,3642.0,3641.1,0.84755626]
[1736122934504,2.59223,3642.0,3641.1,0.84755626]
[1736122934802,2.59223,3642.0,3641.3,0.8333]
[1736122934998,2.59223,3642.0,3641.4,0.04294044]
[1736122935856,0.121,3642.0,3641.4,0.04294044]
[1736122936449,1.3889,3642.7,3641.5,0.7782]
[1736122936662,1.3889,3642.7,3641.4,2.70022979]
[1736122936663,3.2167,3642.7,3641.7,0.7782]
[1736122936863,3.0957,3642.7,3641.7,0.7782]
[1736122937080,3.0957,3642.7,3641.8,0.04246121]
[1736122937395,0.625,3642.7,3641.9,0.7782]
[1736122937692,0.625,3642.7,3642.0,0.82063523]
[1736122937849,0.625,3642.7,3642.2,0.8204]
[1736122938056,0.625,3642.7,3642.3,3.47768935]
[1736122938368,0.625,3642.7,3642.5,0.8204]
[1736122938566,0.625,3642.7,3642.6,8.99070886]
[1736122938961,0.01,3643.4,3643.3,2.47028]
[1736122939293,0.01,3643.4,3643.3,10.2682985]
[1736122940181,1.14621005,3644.1,3644.0,3.77461]
[1736122940381,0.8322,3645.4,3644.1,3.0197]
[1736122940694,0.8322,3645.4,3644.2,0.04002388]
[1736122941294,2.46888,3645.4,3644.3,0.7548]
[1736122941456,2.4687,3645.7,3644.3,0.7548]
[1736122941791,2.4687,3645.7,3644.5,2.65728935]
[1736122941954,2.4687,3645.7,3644.6,0.04000282]
[1736122942355,2.46874,3645.6,3644.6,0.04000282]
[1736122942569,2.46874,3645.6,3644.4,0.37948239]
[1736122942773,2.46874,3645.6,3644.5,0.04000809]
[1736122943093,0.8322,3645.9,3644.6,0.41742905]
[1736122943294,2.46881,3645.5,3644.6,0.41742905]
[1736122943497,2.46881,3645.5,3644.7,0.03999756]
[1736122943999,2.46882,3645.5,3644.7,0.03999756]
[1736122944160,2.65728935,3645.6,3644.7,0.03999756]
[1736122944359,2.46916,3645.0,3644.3,0.7548]
[1736122944658,2.46883,3645.5,3644.4,0.04001335]
[1736122944996,2.46883,3645.5,3644.5,0.8052]
[1736122945293,2.46883,3645.5,3644.6,0.04000282]
[1736122945455,0.121,3645.6,3644.6,0.04000282]
[1736122945660,0.121,3645.6,3644.8,0.8052]
[1736122945856,2.46867,3645.7,3644.8,0.8052]
[1736122946060,2.46867,3645.7,3644.9,0.03998703]
[1736122946270,2.46851,3646.0,3645.0,0.8052]
[1736122946498,2.46853,3645.9,3645.0,0.8052]
[1736122946700,2.46853,3645.9,3645.1,0.03915091]
[1736122946891,2.46861,3645.8,3645.1,0.03915091]
[1736122949702,2.46834,3646.2,3645.1,0.03915091]
[1736122950280,0.12,3646.3,3645.1,0.03915091]
[1736122950478,2.46854,3645.9,3645.1,0.03915091]
[1736122950879,2.46854,3645.9,3645.0,1.21516786]
[1736122951202,2.41854,3645.9,3645.0,1.21516786]
[1736122951594,2.41854,3645.9,3645.1,0.03846765]
[1736122951960,0.558812,3646.3,3645.1,0.03846765]
[1736122952165,2.46868,3645.7,3645.1,0.03846765]
[1736122952975,2.58841,3646.1,3645.1,0.03846765]
[1736122953582,2.46846,3646.0,3645.1,0.03846765]
[1736122954179,0.7997,3646.0,3645.1,0.03846765]
[1736122954406,2.46872,3645.7,3645.0,0.8052]
[1736122954563,2.46874,3645.6,3645.1,0.03846765]
[1736122955084,5.58839,3646.1,3645.1,0.03846765]
[1736122955085,0.12,3646.1,3645.1,0.03846765]
[1736122955286,2.46861,3645.8,3645.1,0.03846765]
[1736122955720,2.46873,3645.6,3645.1,0.03846765]
[1736122955925,2.46883,3645.5,3645.1,0.03846765]
[1736122956121,2.46891,3645.4,3645.1,0.03846765]
[1736122956322,2.65728935,3645.9,3645.1,0.03846765]
[1736122956589,2.469,3645.2,3645.1,0.03846765]
[1736122956790,2.469,3645.2,3644.7,0.75]
[1736122956989,2.469,3645.2,3644.8,0.03690973]
[1736122957289,2.469,3645.2,3644.7,0.75]
[1736122957922,3.0,3645.5,3644.7,0.75]
[1736122957923,5.46882,3645.5,3644.7,0.75]
[1736122958138,3.0,3645.5,3644.8,0.03568547]
[1736122958287,2.46887,3645.4,3644.8,0.03568547]
[1736122958989,0.7839,3646.1,3644.8,0.03568547]
[1736122959190,2.46856,3645.9,3644.9,0.8098]
[1736122959461,2.46856,3645.9,3645.0,0.03567494]
[1736122959589,2.46856,3645.9,3645.1,0.7504]
[1736122959795,0.12,3646.0,3645.2,0.0358339]
[1736122961334,2.46862,3645.8,3645.2,0.0358339]
[1736122962915,0.12,3646.0,3645.2,0.0358339]
[1736122963239,2.46887,3645.4,3645.1,0.7504]
[1736122963652,2.46908,3645.1,3644.0,0.8275]
[1736122964117,3.7895,3645.7,3644.2,0.823]
[1736122964503,2.46886,3645.5,3644.4,0.8163]
[1736122964900,2.46886,3645.5,3644.5,0.03453983]
[1736122965104,3.7895,3645.7,3644.5,0.03453983]
[1736122965344,2.46887,3645.4,3644.5,0.03453983]
[1736122965548,2.46872,3645.7,3644.6,0.7842]
[1736122965736,2.46872,3645.7,3644.7,0.34760292]
[1736122966046,0.7568,3646.1,3644.7,0.34760292]
[1736122966047,0.7568,3646.1,3644.8,0.7721]
[1736122966252,2.59049,3646.0,3644.9,0.03463176]
[1736122966449,2.59049,3646.0,3645.0,0.7721]
[1736122966745,2.59032,3646.3,3645.1,0.80672123]
[1736122967330,2.59032,3646.3,3645.3,0.7671]
[1736122967718,2.59032,3646.3,3645.4,0.03454382]
[1736122967902,0.122,3646.3,3645.5,0.7671]
[1736122968318,2.46815,3646.5,3645.6,0.0345333]
[1736122968555,2.46815,3646.5,3645.7,0.7671]
[1736122968853,2.46815,3646.5,3645.8,0.03404522]
[1736122969019,2.46815,3646.5,3645.7,0.7671]
[1736122969352,2.46815,3646.5,3645.8,0.03404008]
[1736122969656,2.58993,3646.8,3645.9,0.7671]
[1736122969853,0.122,3646.8,3645.9,0.7671]
[1736122970156,0.122,3646.8,3645.7,2.65728935]
[1736122970157,2.46779,3647.0,3646.1,0.7758]
[1736122970532,2.46779,3647.0,3646.2,0.03401904]
[1736122971658,2.46792,3646.8,3646.2,0.03401904]
[1736122972055,2.46792,3646.8,3646.1,0.7758]
[1736122972258,2.46792,3646.8,3646.2,0.03373672]
[1736122973261,3.76235495,3647.3,3646.2,0.03373672]
[1736122973556,2.46798,3646.8,3646.2,0.03373672]
[1736122973756,2.46798,3646.8,3646.1,0.7758]
[1736122974257,2.46798,3646.8,3646.2,0.03373672]
[1736122974757,3.76235495,3647.3,3646.2,0.03373672]
[1736122974926,2.46774,3647.1,3646.2,0.03373672]
[1736122975120,2.46443876,3647.1,3646.3,0.8057]
[1736122975457,2.46443876,3647.1,3646.4,0.0337262]
[1736122976574,2.46779,3647.0,3646.4,0.0337262]
[1736122977038,2.46765,3647.2,3646.4,0.0337262]
[1736122977241,0.1798656,3647.3,3646.5,0.7564]
[1736122977562,2.46765,3647.2,3646.6,0.03371568]
[1736122980869,0.1798656,3647.3,3646.6,0.03371568]
[1736122981444,0.1798656,3647.3,3646.7,0.8072]
[1736122981649,0.1798656,3647.3,3646.9,0.8072]
[1736122982153,0.1798656,3647.3,3647.0,0.03244941]
[1736122982925,2.46766,3647.2,3647.0,0.03244941]
[1736122983368,0.1798656,3647.3,3646.9,0.8072]
[1736122983675,2.6474556,3647.3,3646.9,0.8072]
[1736122984171,2.46765,3647.2,3646.9,0.8072]
[1736122984363,2.46775,3647.1,3646.6,0.802]
[1736122984741,0.1798656,3647.3,3646.7,0.03242414]
[1736122984947,2.46773,3647.1,3646.7,0.03242414]
[1736122985171,2.46773,3647.1,3646.6,0.802]
[1736122986030,2.46773,3647.1,3646.7,0.03242414]
[1736122986233,2.46773,3647.1,3646.6,0.802]
[1736122986429,2.46773,3647.1,3646.7,0.03242414]
[1736122986671,2.46773,3647.1,3646.6,0.802]
[1736122987171,2.46773,3647.1,3646.7,0.03242414]
[1736122987473,2.46773,3647.1,3646.6,0.802]
[1736122987767,2.46789,3646.9,3646.6,0.802]
[1736122987972,2.46789,3646.9,3646.7,0.03242414]
[1736122988173,2.46789,3646.9,3646.6,0.802]
[1736122988374,2.46791,3646.8,3646.6,0.802]
[1736122989233,0.55,3647.2,3646.6,0.802]
[1736122989434,0.1798656,3647.3,3646.6,0.802]
[1736122989871,0.1798656,3647.3,3646.7,0.327014]
[1736122990076,0.1798656,3647.3,3646.8,0.7705]
[1736122990440,0.1798656,3647.3,3646.9,0.03258807]
[1736122990639,0.1798656,3647.3,3646.3,2.65728935]
[1736122990640,0.1798656,3647.3,3647.0,0.7705]
[1736122990866,0.1798656,3647.3,3647.1,0.03240313]
[1736122992451,0.1798656,3647.3,3647.2,0.7805]
[1736122992781,0.1798656,3647.3,3647.2,0.81289788]
[1736122998127,0.1798656,3647.3,3647.2,0.03239788]
[1736122998332,2.6474356,3647.3,3647.2,0.03239788]
[1736122998536,2.46765,3647.2,3646.3,0.7586]
[1736122999038,2.46765,3647.2,3646.4,0.03232707]
[1736122999203,2.46773,3647.1,3646.4,0.03232707]
[1736122999412,2.46786,3646.9,3646.4,0.03232707]
[1736122999742,2.46799,3646.7,3646.3,0.7586]
[1736123000817,2.5888,3647.0,3646.3,0.7586]
[1736123001018,2.5888,3647.0,3646.4,0.03143084]
[1736123002619,0.121,3647.0,3646.4,0.03143084]
[1736123003142,0.47669156,3647.0,3646.4,0.03143084]
[1736123003462,0.55,3646.9,3646.0,0.8104]
[1736123003834,0.55,3646.9,3646.1,0.03145175]
[1736123004247,0.55,3646.7,3646.1,0.03145175]
[1736123004452,2.46804,3646.7,3646.1,0.03145175]
[1736123005315,0.55,3646.6,3646.1,0.03145175]
[1736123005557,2.46832,3646.2,3646.1,0.03145175]
[1736123005732,2.46832,3646.2,3645.7,0.8104]
[1736123006125,0.121,3646.6,3645.9,0.8104]
[1736123006531,0.121,3646.6,3646.0,0.03167252]
[1736123006778,0.121,3646.6,3645.9,0.8104]
[1736123006983,0.121,3646.6,3646.1,0.03166726]
[1736123007160,0.121,3646.6,3646.0,0.327902]
[1736123007161,0.121,3646.6,3646.0,0.35957452]
[1736123007341,0.121,3646.6,3646.2,0.031662]
[1736123007537,0.121,3646.6,3646.1,0.03166726]
[1736123007769,0.121,3646.6,3646.3,0.03165674]
[1736123007967,0.121,3646.6,3646.2,0.031662]
[1736123008129,0.121,3646.6,3646.4,0.03165148]
[1736123008326,0.121,3646.6,3646.3,0.03165674]
[1736123008532,2.46812,3646.5,3645.9,0.8104]
[1736123008844,2.58905,3646.6,3646.0,0.03207273]
[1736123009476,0.121,3646.6,3646.0,0.03207273]
[1736123011784,2.58908,3646.6,3646.0,0.03207273]
[1736123011933,0.121,3646.6,3646.0,0.03207273]
[1736123012131,2.46818,3646.5,3646.0,0.03207273]
[1736123012544,0.121,3646.6,3646.0,0.03207273]
[1736123016243,2.46826,3646.3,3646.0,0.03207273]
[1736123017804,0.121,3646.6,3646.0,0.03207273]
[1736123017805,3.61433005,3646.5,3646.0,0.03207273]
[1736123018299,1.14621005,3646.5,3646.0,0.03207273]
[1736123019393,1.14621005,3646.6,3646.0,0.03207273]
[1736123020402,2.46805,3646.6,3646.0,0.03207273]
[1736123020552,2.46805,3646.6,3645.9,0.8104]
[1736123020755,2.46805,3646.6,3646.1,0.0322009]
[1736123020981,2.46805,3646.6,3646.0,0.03220616]
[1736123021190,2.46805,3646.6,3646.2,0.03219564]
[1736123021407,2.46805,3646.6,3646.1,0.0322009]
[1736123021689,2.46805,3646.6,3646.2,0.03219564]
[1736123021846,2.46805,3646.6,3645.9,0.8104]
[1736123022051,2.46805,3646.6,3646.0,0.03220616]
[1736123022489,2.46812,3646.5,3646.0,0.03220616]
[1736123022975,2.46822,3646.4,3646.0,0.03220616]
[1736123024094,2.46822,3646.4,3645.9,0.8104]
[1736123024795,1.14621005,3646.6,3646.0,0.0322164]
[1736123025160,1.14621005,3646.6,3645.9,0.8104]
[1736123025488,1.14621005,3646.6,3646.0,0.0322164]
[1736123025670,0.7691,3646.5,3646.0,0.0322164]
[1736123025869,2.46826,3646.3,3645.4,0.7528]
[1736123026065,3.61430005,3646.6,3645.5,0.03224783]
[1736123026271,1.14621005,3646.3,3645.6,0.7785]
[1736123026472,1.14621005,3646.3,3645.8,0.7785]
[1736123026681,1.14621005,3646.3,3646.0,0.7785]
[1736123026994,1.14621005,3646.3,3646.1,0.03218548]
[1736123027359,0.121,3646.8,3646.1,0.03218548]
[1736123027764,0.121,3646.8,3646.0,0.7785]
[1736123028205,0.121,3646.8,3646.1,0.03218548]
[1736123028572,0.121,3646.8,3646.0,0.7785]
[1736123028896,0.121,3646.8,3646.1,0.03218548]
[1736123029075,0.121,3646.8,3646.0,0.7785]
[1736123029276,0.121,3646.8,3646.1,0.03218548]
[1736123029585,1.14621005,3646.9,3645.9,2.46848]
[1736123029788,1.26721005,3647.0,3646.1,0.7856]
[1736123030103,1.14621005,3647.0,3646.2,0.03218022]
[1736123030904,3.73490005,3647.2,3646.2,0.03218022]
[1736123031107,2.46772,3647.1,3646.2,0.03218022]
[1736123031315,2.46781,3647.0,3646.2,0.38877056]
[1736123031498,2.46781,3647.0,3646.2,0.03218022]